lending/lending_fUSD_20241204
["ID","MTS","AMOUNT","RATE_DAILY","PERIOD"]
[344340954,1733356233551,-414.3,7.698e-05,2]
[344340956,1733356233561,-1728.21902942,7.699e-05,2]
[344340958,1733356233572,-500.0,7.699e-05,2]
[344340960,1733356233583,-847.47,7.699e-05,2]
[344340962,1733356233593,-847.47,7.699e-05,2]
[344340963,1733356233604,-847.47,7.699e-05,2]
[344340965,1733356233619,-847.47,7.699e-05,2]
[344340967,1733356233629,-847.47,7.699e-05,2]
[344340969,1733356233639,-847.47,7.699e-05,2]
[344340971,1733356233650,-847.47,7.699e-05,2]
[344340972,1733356233661,-847.47,7.699e-05,2]
[344340974,1733356233671,-847.47,7.699e-05,2]
[344340976,1733356233682,-847.47,7.699e-05,2]
[344340978,1733356233693,-847.47,7.699e-05,2]
[344340980,1733356233704,-847.47,7.699e-05,2]
[344340982,1733356233714,-847.47,7.699e-05,2]
[344340983,1733356233725,-847.47,7.699e-05,2]
[344340985,1733356233734,-847.47,7.699e-05,2]
[344340987,1733356233745,-847.47,7.699e-05,2]
[344340989,1733356233755,-847.47,7.699e-05,2]
[344340991,1733356233766,-847.47,7.699e-05,2]
[344340993,1733356233776,-500.0,7.699e-05,2]
[344340995,1733356233787,-847.47,7.699e-05,2]
[344340996,1733356233803,-190.58446746,7.699e-05,2]
[344340998,1733356233819,-847.47,7.699e-05,2]
[344341000,1733356233830,-847.47,7.699e-05,2]
[344341002,1733356233841,-847.47,7.699e-05,2]
[344341004,1733356233851,-847.47,7.699e-05,2]
[344341006,1733356233862,-847.5,7.699e-05,2]
[344341008,1733356233873,-500.0,7.699e-05,2]
[344341010,1733356233885,-500.0,7.699e-05,2]
[344341011,1733356233897,-500.0,7.699e-05,2]
[344341013,1733356233907,-500.0,7.699e-05,2]
[344341015,1733356233918,-500.0,7.699e-05,2]
[344341017,1733356233928,-500.0,7.699e-05,2]
[344341019,1733356233939,-500.0,7.699e-05,2]
[344341021,1733356233950,-500.0,7.699e-05,2]
[344341023,1733356233960,-500.0,7.699e-05,2]
[344341024,1733356233972,-500.0,7.699e-05,2]
[344341026,1733356233983,-500.0,7.699e-05,2]
[344341028,1733356233993,-500.0,7.699e-05,2]
[344341030,1733356234003,-500.0,7.699e-05,2]
[344341032,1733356234014,-500.0,7.699e-05,2]
[344341034,1733356234024,-500.0,7.699e-05,2]
[344341036,1733356234034,-348.32905471,7.699e-05,2]
[344341037,1733356234046,-500.0,7.699e-05,2]
[344341039,1733356234057,-500.0,7.699e-05,2]
[344341041,1733356234067,-500.0,7.699e-05,2]
[344341043,1733356234082,-500.0,7.699e-05,2]
[344341045,1733356234093,-500.0,7.699e-05,2]
[344341047,1733356234104,-394.80275839,7.699e-05,2]
[344341049,1733356234115,-500.0,7.699e-05,2]
[344341051,1733356234126,-500.0,7.699e-05,2]
[344341053,1733356234136,-5800.0,7.699e-05,2]
[344341055,1733356234146,-500.0,7.699e-05,2]
[344341057,1733356234156,-500.0,7.699e-05,2]
[344341059,1733356234166,-500.0,7.699e-05,2]
[344341060,1733356234177,-500.0,7.699e-05,2]
[344341061,1733356234187,-500.60798122,7.699e-05,2]
[344341062,1733356234197,-500.0,7.699e-05,2]
[344341063,1733356234208,-500.0,7.699e-05,2]
[344341064,1733356234217,-500.0,7.699e-05,2]
[344341065,1733356234228,-500.0,7.699e-05,2]
[344341066,1733356234238,-526.42976328,7.699e-05,2]
[344341067,1733356234248,-517.30199464,7.699e-05,2]
[344341068,1733356234258,-500.0,7.699e-05,2]
[344341069,1733356234268,-500.0,7.699e-05,2]
[344341070,1733356234278,-500.0,7.699e-05,2]
[344341071,1733356234289,-500.0,7.699e-05,2]
[344341072,1733356234306,-520.7150123,7.699e-05,2]
[344341073,1733356234316,-504.86696246,7.699e-05,2]
[344341074,1733356234326,-500.0,7.699e-05,2]
[344341075,1733356234336,-500.0,7.699e-05,2]
[344341076,1733356234345,-500.0,7.699e-05,2]
[344341077,1733356234355,-500.0,7.699e-05,2]
[344341078,1733356234365,-500.0,7.699e-05,2]
[344341080,1733356234375,-559.70533835,7.699e-05,2]
[344341082,1733356234385,-500.0,7.699e-05,2]
[344341084,1733356234395,-500.0,7.699e-05,2]
[344341086,1733356234405,-500.0,7.699e-05,2]
[344341088,1733356234415,-532.41482311,7.699e-05,2]
[344341090,1733356234424,-500.0,7.699e-05,2]
[344341092,1733356234434,-500.0,7.699e-05,2]
[344341094,1733356234444,-500.0,7.699e-05,2]
[344341096,1733356234454,-555.92,7.699e-05,2]
[344341098,1733356234464,-500.0,7.699e-05,2]
[344341100,1733356234474,-500.0,7.699e-05,2]
[344341102,1733356234484,-500.0,7.699e-05,2]
[344341104,1733356234494,-500.0,7.699e-05,2]
[344341106,1733356234504,-500.0,7.699e-05,2]
[344341108,1733356234514,-500.0,7.699e-05,2]
[344341110,1733356234525,-500.0,7.699e-05,2]
[344341112,1733356234535,-500.0,7.699e-05,2]
[344341114,1733356234548,-500.0,7.699e-05,2]
[344341116,1733356234558,-500.0,7.699e-05,2]
[344341118,1733356234568,-500.0,7.699e-05,2]
[344341120,1733356234578,-500.0,7.699e-05,2]
[344341122,1733356234587,-500.0,7.699e-05,2]
[344341124,1733356234597,-601.77596568,7.699e-05,2]
[344341126,1733356234609,-500.0,7.699e-05,2]
[344341128,1733356234621,-500.0,7.699e-05,2]
[344341130,1733356234631,-500.0,7.699e-05,2]
[344341132,1733356234641,-500.0,7.699e-05,2]
[344341134,1733356234651,-500.0,7.699e-05,2]
[344341137,1733356234662,-500.0,7.699e-05,2]
[344341139,1733356234673,-500.0,7.699e-05,2]
[344341141,1733356234683,-500.0,7.699e-05,2]
[344341143,1733356234697,-500.0,7.699e-05,2]
[344341145,1733356234708,-500.0,7.699e-05,2]
[344341147,1733356234718,-517.35283948,7.699e-05,2]
[344341149,1733356234728,-500.0,7.699e-05,2]
[344341151,1733356234738,-500.0,7.699e-05,2]
[344341153,1733356234749,-500.0,7.699e-05,2]
[344341155,1733356234759,-403.50274534,7.699e-05,2]
[344341157,1733356234770,-500.0,7.699e-05,2]
[344341159,1733356234780,-500.0,7.699e-05,2]
[344341160,1733356234794,-500.0,7.699e-05,2]
[344341162,1733356234804,-502.65811736,7.699e-05,2]
[344341164,1733356234815,-202.18,7.699e-05,2]
[344341166,1733356234825,-500.0,7.699e-05,2]
[344341168,1733356234836,-205.33946705,7.699e-05,2]
[344341170,1733356234846,-500.0,7.699e-05,2]
[344341172,1733356234857,-500.0,7.699e-05,2]
[344341174,1733356234867,-351.22,7.699e-05,2]
[344341176,1733356234878,-500.0,7.699e-05,2]
[344341177,1733356234888,-500.0,7.699e-05,2]
[344341179,1733356234898,-500.0,7.699e-05,2]
[344341181,1733356234908,-500.0,7.699e-05,2]
[344341184,1733356234919,-500.0,7.699e-05,2]
[344341186,1733356234930,-500.0,7.699e-05,2]
[344341188,1733356234940,-500.0,7.699e-05,2]
[344341190,1733356234950,-500.0,7.699e-05,2]
[344341191,1733356234961,-500.0,7.699e-05,2]
[344341193,1733356234971,-500.0,7.699e-05,2]
[344341195,1733356234982,-500.0,7.699e-05,2]
[344341197,1733356234992,-510.61522224,7.699e-05,2]
[344341199,1733356235001,-500.0,7.699e-05,2]
[344341201,1733356235011,-500.0,7.699e-05,2]
[344341203,1733356235022,-578.99,7.699e-05,2]
[344341205,1733356235032,-500.0,7.699e-05,2]
[344341207,1733356235042,-500.0,7.699e-05,2]
[344341209,1733356235052,-500.0,7.699e-05,2]
[344341211,1733356235062,-162.57771043,7.699e-05,2]
[344341213,1733356235074,-502.2518641,7.699e-05,2]
[344341215,1733356235085,-640.48497743,7.699e-05,2]
[344341217,1733356235095,-500.0,7.699e-05,2]
[344341219,1733356235105,-500.0,7.699e-05,2]
[344341221,1733356235115,-500.0,7.699e-05,2]
[344341223,1733356235126,-566.41523064,7.699e-05,2]
[344341225,1733356235136,-488.55,7.699e-05,2]
[344341227,1733356235146,-500.18175828,7.699e-05,2]
[344341229,1733356235156,-500.0,7.699e-05,2]
[344341231,1733356235166,-596.46,7.699e-05,2]
[344341233,1733356235176,-502.18760409,7.699e-05,2]
[344341235,1733356235186,-500.8456626,7.699e-05,2]
[344341237,1733356235196,-500.0,7.699e-05,2]
[344341239,1733356235206,-500.0,7.699e-05,2]
[344341241,1733356235216,-550.84848441,7.699e-05,2]
[344341243,1733356235226,-261.13244147,7.699e-05,2]
[344341245,1733356235236,-500.0,7.699e-05,2]
[344341247,1733356235246,-294.06952416,7.699e-05,2]
[344341249,1733356235256,-500.0,7.699e-05,2]
[344341251,1733356235266,-545.04,7.699e-05,2]
[344341253,1733356235276,-500.0,7.699e-05,2]
[344341255,1733356235286,-500.0,7.699e-05,2]
[344341257,1733356235298,-500.0,7.699e-05,2]
[344341259,1733356235308,-500.0,7.699e-05,2]
[344341261,1733356235318,-500.0,7.699e-05,2]
[344341263,1733356235327,-500.0,7.699e-05,2]
[344341265,1733356235337,-500.0,7.699e-05,2]
[344341267,1733356235347,-500.0,7.699e-05,2]
[344341269,1733356235358,-500.0,7.699e-05,2]
[344341271,1733356235368,-500.0,7.699e-05,2]
[344341273,1733356235378,-500.0,7.699e-05,2]
[344341275,1733356235388,-500.0,7.699e-05,2]
[344341277,1733356235397,-500.0,7.699e-05,2]
[344341279,1733356235407,-500.0,7.699e-05,2]
[344341281,1733356235417,-500.0,7.699e-05,2]
[344341283,1733356235427,-500.0,7.699e-05,2]
[344341285,1733356235438,-500.0,7.699e-05,2]
[344341287,1733356235447,-500.0,7.699e-05,2]
[344341289,1733356235457,-500.0,7.699e-05,2]
[344341291,1733356235467,-325.8459216,7.699e-05,2]
[344341293,1733356235477,-500.0,7.699e-05,2]
[344341295,1733356235487,-500.0,7.699e-05,2]
[344341297,1733356235497,-500.0,7.699e-05,2]
[344341299,1733356235507,-500.0,7.699e-05,2]
[344341301,1733356235516,-506.38176963,7.699e-05,2]
[344341302,1733356235526,-500.0,7.699e-05,2]
[344341304,1733356235536,-500.0,7.699e-05,2]
[344341306,1733356235549,-500.0,7.699e-05,2]
[344341308,1733356235558,-269.83763851,7.699e-05,2]
[344341310,1733356235569,-2106.96,7.699e-05,2]
[344341312,1733356235579,-500.0,7.699e-05,2]
[344341315,1733356235590,-500.0,7.699e-05,2]
[344341317,1733356235600,-500.0,7.699e-05,2]
[344341318,1733356235611,-172.46723217,7.699e-05,2]
[344341320,1733356235622,-500.0,7.699e-05,2]
[344341322,1733356235632,-275.68190069,7.699e-05,2]
[344341324,1733356235642,-500.0,7.699e-05,2]
[344341326,1733356235652,-500.0,7.699e-05,2]
[344341328,1733356235662,-500.0,7.699e-05,2]
[344341330,1733356235673,-553.78,7.699e-05,2]
[344341332,1733356235684,-301.96,7.699e-05,2]
[344341334,1733356235694,-500.0,7.699e-05,2]
[344341336,1733356235704,-500.0,7.699e-05,2]
[344341338,1733356235714,-500.0,7.699e-05,2]
[344341340,1733356235724,-306.0,7.699e-05,2]
[344341342,1733356235734,-518.70221419,7.699e-05,2]
[344341344,1733356235744,-500.0,7.699e-05,2]
[344341346,1733356235754,-500.0,7.699e-05,2]
[344341348,1733356235764,-500.0,7.699e-05,2]
[344341350,1733356235774,-500.0,7.699e-05,2]
[344341351,1733356235784,-500.0,7.699e-05,2]
[344341354,1733356235795,-500.0,7.699e-05,2]
[344341356,1733356235806,-500.0,7.699e-05,2]
[344341358,1733356235816,-500.0,7.699e-05,2]
[344341360,1733356235826,-168.47059637,7.699e-05,2]
[344341362,1733356235836,-500.0,7.699e-05,2]
[344341364,1733356235847,-500.0,7.699e-05,2]
[344341366,1733356235857,-528.93700259,7.699e-05,2]
[344341368,1733356235869,-392.68391184,7.699e-05,2]
[344341370,1733356235878,-500.0,7.699e-05,2]
[344341372,1733356235888,-500.0,7.699e-05,2]
[344341374,1733356235898,-500.0,7.699e-05,2]
[344341376,1733356235908,-422.93033277,7.699e-05,2]
[344341378,1733356235918,-500.0,7.699e-05,2]
[344341380,1733356235928,-500.0,7.699e-05,2]
[344341382,1733356235938,-500.0,7.699e-05,2]
[344341384,1733356235948,-500.0,7.699e-05,2]
[344341386,1733356235957,-500.0,7.699e-05,2]
[344341388,1733356235967,-500.0,7.699e-05,2]
[344341390,1733356235976,-500.0,7.699e-05,2]
[344341392,1733356235986,-500.0,7.699e-05,2]
[344341394,1733356235996,-500.0,7.699e-05,2]
[344341396,1733356236006,-500.0,7.699e-05,2]
[344341398,1733356236016,-500.0,7.699e-05,2]
[344341400,1733356236027,-500.0,7.699e-05,2]
[344341402,1733356236037,-500.0,7.699e-05,2]
[344341404,1733356236049,-500.0,7.699e-05,2]
[344341406,1733356236060,-500.0,7.699e-05,2]
[344341408,1733356236070,-212.05757052,7.699e-05,2]
[344341410,1733356236081,-500.0,7.699e-05,2]
[344341412,1733356236090,-500.0,7.699e-05,2]
[344341414,1733356236100,-500.0,7.699e-05,2]
[344341416,1733356236111,-500.0,7.699e-05,2]
[344341418,1733356236121,-500.0,7.699e-05,2]
[344341420,1733356236132,-500.0,7.699e-05,2]
[344341422,1733356236142,-500.0,7.699e-05,2]
[344341424,1733356236151,-500.0,7.699e-05,2]
[344341426,1733356236161,-500.0,7.699e-05,2]
[344341428,1733356236171,-500.0,7.699e-05,2]
[344341430,1733356236181,-500.0,7.699e-05,2]
[344341432,1733356236192,-500.0,7.699e-05,2]
[344341434,1733356236203,-500.0,7.699e-05,2]
[344341436,1733356236214,-500.0,7.699e-05,2]
[344341438,1733356236225,-500.0,7.699e-05,2]
[344341440,1733356236236,-500.0,7.699e-05,2]
[344341442,1733356236246,-500.0,7.699e-05,2]
[344341444,1733356236257,-500.0,7.699e-05,2]
[344341446,1733356236268,-500.0,7.699e-05,2]
[344341448,1733356236278,-500.0,7.699e-05,2]
[344341450,1733356236288,-500.0,7.699e-05,2]
[344341452,1733356236301,-500.0,7.699e-05,2]
[344341454,1733356236311,-500.0,7.699e-05,2]
[344341456,1733356236321,-606.31665463,7.699e-05,2]
[344341458,1733356236331,-500.0,7.699e-05,2]
[344341460,1733356236341,-500.0,7.699e-05,2]
[344341462,1733356236352,-500.0,7.699e-05,2]
[344341464,1733356236361,-500.0,7.699e-05,2]
[344341466,1733356236371,-500.0,7.699e-05,2]
[344341468,1733356236382,-500.0,7.699e-05,2]
[344341471,1733356236392,-500.0,7.699e-05,2]
[344341473,1733356236403,-500.0,7.699e-05,2]
[344341475,1733356236413,-500.0,7.699e-05,2]
[344341477,1733356236423,-500.0,7.699e-05,2]
[344341479,1733356236433,-500.0,7.699e-05,2]
[344341481,1733356236443,-500.0,7.699e-05,2]
[344341483,1733356236453,-500.0,7.699e-05,2]
[344341484,1733356236463,-182.49301541,7.699e-05,2]
[344341486,1733356236473,-290.94929477,7.699e-05,2]
[344341488,1733356236483,-500.0,7.699e-05,2]
[344341490,1733356236493,-500.0,7.699e-05,2]
[344341492,1733356236502,-500.0,7.699e-05,2]
[344341494,1733356236512,-500.0,7.699e-05,2]
[344341496,1733356236522,-500.0,7.699e-05,2]
[344341499,1733356236532,-500.0,7.699e-05,2]
[344341501,1733356236542,-500.0,7.699e-05,2]
[344341503,1733356236552,-500.0,7.699e-05,2]
[344341505,1733356236562,-500.0,7.699e-05,2]
[344341507,1733356236571,-500.0,7.699e-05,2]
[344341509,1733356236583,-500.0,7.699e-05,2]
[344341510,1733356236592,-500.0,7.699e-05,2]
[344341512,1733356236603,-500.0,7.699e-05,2]
[344341514,1733356236615,-250.08,7.699e-05,2]
[344341516,1733356236625,-500.0,7.699e-05,2]
[344341518,1733356236634,-500.0,7.699e-05,2]
[344341520,1733356236643,-500.0,7.699e-05,2]
[344341522,1733356236655,-500.0,7.699e-05,2]
[344341524,1733356236664,-500.0,7.699e-05,2]
[344341526,1733356236673,-500.0,7.699e-05,2]
[344341528,1733356236685,-500.0,7.699e-05,2]
[344341530,1733356236694,-500.0,7.699e-05,2]
[344341532,1733356236703,-500.0,7.699e-05,2]
[344341534,1733356236713,-500.0,7.699e-05,2]
[344341536,1733356236722,-500.0,7.699e-05,2]
[344341538,1733356236732,-500.0,7.699e-05,2]
[344341540,1733356236742,-500.0,7.699e-05,2]
[344341542,1733356236752,-500.0,7.699e-05,2]
[344341544,1733356236762,-500.0,7.699e-05,2]
[344341547,1733356236778,-500.0,7.699e-05,2]
[344341549,1733356236788,-500.0,7.699e-05,2]
[344341551,1733356236803,-500.0,7.699e-05,2]
[344341553,1733356236815,-500.0,7.699e-05,2]
[344341555,1733356236826,-500.0,7.699e-05,2]
[344341557,1733356236837,-203.20816469,7.699e-05,2]
[344341559,1733356236847,-355.62,7.699e-05,2]
[344341561,1733356236858,-6642.9,7.699e-05,2]
[344341563,1733356236868,-6642.9,7.699e-05,2]
[344341565,1733356236879,-6642.9,7.699e-05,2]
[344341567,1733356236890,-4840.24803988,7.699e-05,2]
[344341601,1733356237223,-1802.65196012,7.699e-05,2]
[344341603,1733356237234,-178.66803988,7.699e-05,2]
[344341607,1733356237267,-6464.23196012,7.699e-05,2]
[344341609,1733356237278,-6184.66803991,7.699e-05,2]
[344341611,1733356237295,-458.23196009,7.699e-05,2]
[344341613,1733356237306,-2407.30343116,7.699e-05,2]
[344341616,1733356237328,-3658.3709354,7.699e-05,2]
[344341618,1733356237340,-577.22563344,7.699e-05,2]
[344341620,1733356237350,-1895.13601133,7.699e-05,2]
[344341672,1733356237931,-833.69583873,7.599e-05,2]
[344341675,1733356237944,-769.96443153,7.599e-05,2]
[344341677,1733356237956,-292.04521374,7.599e-05,2]
[344341679,1733356237968,-20359.121616,7.599e-05,2]
[344341681,1733356237978,-500.0,7.673e-05,2]
[344341683,1733356237988,-832.08795918,7.699e-05,2]
[344341686,1733356238004,-451.15504761,7.699e-05,2]
[344341688,1733356238016,-311.184893,7.699e-05,2]
[344341690,1733356238029,-1156.0999994,7.699e-05,2]
[344341692,1733356238044,-1027.90064709,7.699e-05,2]
[344341694,1733356238056,-969.33544239,7.699e-05,2]
[344341696,1733356238068,-6642.9,7.699e-05,2]
[344341698,1733356238078,-200.0500001,7.699e-05,2]
[344341700,1733356238089,-6642.9,7.699e-05,2]
[344341702,1733356238101,-6642.9,7.699e-05,2]
[344341704,1733356238111,-6642.9,7.699e-05,2]
[344341708,1733356238133,-6642.9,7.699e-05,2]
[344341710,1733356238144,-6642.9,7.699e-05,2]
[344341712,1733356238155,-6642.9,7.699e-05,2]
[344341714,1733356238165,-1787.15955294,7.699e-05,2]
[344341716,1733356238179,-2017.59988644,7.699e-05,2]
[344341718,1733356238191,-2478.34884479,7.699e-05,2]
[344341721,1733356238205,-359.79171583,7.699e-05,2]
[344341723,1733356238215,-6642.9,7.699e-05,2]
[344341724,1733356238225,-2549.27345496,7.699e-05,2]
[344341727,1733356238237,-1572.82199258,7.699e-05,2]
[344341729,1733356238250,-2520.80455246,7.699e-05,2]
[344341731,1733356238260,-6642.9,7.699e-05,2]
[344341733,1733356238271,-6642.9,7.699e-05,2]
[344341735,1733356238282,-6642.9,7.699e-05,2]
[344341737,1733356238294,-6642.9,7.699e-05,2]
[344341739,1733356238305,-6643.05390274,7.699e-05,2]
[344341741,1733356238315,-301.66229795,7.699e-05,2]
[344341743,1733356238325,-500.0,7.699e-05,2]
[344341745,1733356238335,-500.0,7.699e-05,2]
[344341747,1733356238345,-1653.48,7.699e-05,2]
[344341749,1733356238355,-1653.48,7.699e-05,2]
[344341751,1733356238365,-1653.48,7.699e-05,2]
[344341754,1733356238376,-1653.48,7.699e-05,2]
[344341756,1733356238387,-1653.48,7.699e-05,2]
[344341758,1733356238397,-1653.48,7.699e-05,2]
[344341760,1733356238407,-1653.48,7.699e-05,2]
[344341762,1733356238417,-1653.48,7.699e-05,2]
[344341764,1733356238428,-1653.48,7.699e-05,2]
[344341766,1733356238439,-1653.48,7.699e-05,2]
[344341768,1733356238449,-1653.48,7.699e-05,2]
[344341770,1733356238459,-1653.48,7.699e-05,2]
[344341772,1733356238469,-1653.48,7.699e-05,2]
[344341774,1733356238479,-1653.48,7.699e-05,2]
[344341776,1733356238490,-1653.48,7.699e-05,2]
[344341778,1733356238500,-1653.48,7.699e-05,2]
[344341780,1733356238511,-1653.48,7.699e-05,2]
[344341782,1733356238521,-1653.48,7.699e-05,2]
[344341785,1733356238531,-1653.48,7.699e-05,2]
[344341787,1733356238543,-1653.48,7.699e-05,2]
[344341789,1733356238554,-1653.48,7.699e-05,2]
[344341791,1733356238571,-1653.48,7.699e-05,2]
[344341793,1733356238581,-1653.68300332,7.699e-05,2]
[344341796,1733356238592,-500.0,7.699e-05,2]
[344341798,1733356238603,-500.0,7.699e-05,2]
[344341800,1733356238617,-500.0,7.699e-05,2]
[344341802,1733356238627,-500.0,7.699e-05,2]
[344341804,1733356238638,-500.0,7.699e-05,2]
[344341806,1733356238649,-500.0,7.699e-05,2]
[344341808,1733356238660,-500.0,7.699e-05,2]
[344341810,1733356238670,-500.0,7.699e-05,2]
[344341812,1733356238680,-500.0,7.699e-05,2]
[344341814,1733356238692,-500.0,7.699e-05,2]
[344341816,1733356238703,-500.0,7.699e-05,2]
[344341818,1733356238714,-307.6298382,7.699e-05,2]
[344341820,1733356238725,-500.0,7.699e-05,2]
[344341823,1733356238735,-500.0,7.699e-05,2]
[344341825,1733356238746,-500.0,7.699e-05,2]
[344341827,1733356238756,-500.0,7.699e-05,2]
[344341829,1733356238766,-500.0,7.699e-05,2]
[344341831,1733356238777,-157.61708558,7.699e-05,2]
[344341833,1733356238787,-500.0,7.699e-05,2]
[344341835,1733356238801,-500.0,7.699e-05,2]
[344341837,1733356238811,-258.99745001,7.699e-05,2]
[344341839,1733356238823,-500.0,7.699e-05,2]
[344341841,1733356238834,-500.0,7.699e-05,2]
[344341843,1733356238846,-576.65,7.699e-05,2]
[344341845,1733356238857,-500.0,7.699e-05,2]
[344341848,1733356238868,-500.0,7.699e-05,2]
[344341850,1733356238879,-293.35974127,7.699e-05,2]
[344341852,1733356238890,-500.0,7.699e-05,2]
[344341854,1733356238901,-500.0,7.699e-05,2]
[344341856,1733356238912,-500.0,7.699e-05,2]
[344341858,1733356238922,-500.0,7.699e-05,2]
[344341860,1733356238933,-500.0,7.699e-05,2]
[344341862,1733356238943,-500.0,7.699e-05,2]
[344341864,1733356238953,-627.56178391,7.699e-05,2]
[344341866,1733356238963,-500.0,7.699e-05,2]
[344341868,1733356238973,-390.35288353,7.699e-05,2]
[344341870,1733356238983,-500.0,7.699e-05,2]
[344341872,1733356238994,-500.0,7.699e-05,2]
[344341874,1733356239004,-500.0,7.699e-05,2]
[344341877,1733356239014,-500.0,7.699e-05,2]
[344341879,1733356239024,-500.0,7.699e-05,2]
[344341881,1733356239035,-500.0,7.699e-05,2]
[344341883,1733356239046,-500.0,7.699e-05,2]
[344341885,1733356239056,-250.97705147,7.699e-05,2]
[344341887,1733356239066,-206.82958567,7.699e-05,2]
[344341889,1733356239076,-500.0,7.699e-05,2]
[344341891,1733356239087,-500.0,7.699e-05,2]
[344341893,1733356239097,-500.0,7.699e-05,2]
[344341895,1733356239108,-167.15824994,7.699e-05,2]
[344341897,1733356239118,-549.10633703,7.699e-05,2]
[344341899,1733356239128,-200.0,7.699e-05,2]
[344341901,1733356239139,-200.0,7.7e-05,2]
[344341903,1733356239149,-200.0,7.7e-05,2]
[344341905,1733356239160,-526.0,7.7e-05,2]
[344341907,1733356239170,-506.01,7.7e-05,2]
[344341909,1733356239180,-61459.15009809,7.7e-05,2]
[344341912,1733356239194,-1066.34501301,7.7e-05,2]
[344341914,1733356239206,-1150.8,7.7e-05,2]
[344341978,1733356239850,-1931.72624766,7.7e-05,2]
[344341980,1733356239863,-6297.22496646,7.7e-05,2]
[344341982,1733356239875,-278.40763384,7.7e-05,2]
[344341985,1733356239886,-4697.86506135,7.7e-05,2]
[344341994,1733356239961,-19207.50077196,7.7e-05,2]
[344341996,1733356239973,-372.80077324,7.7e-05,2]
[344341998,1733356239984,-1528.69867871,7.7e-05,2]
[344342000,1733356239996,-3786.67281136,7.7e-05,2]
[344342002,1733356240007,-5723.9,7.7e-05,2]
[344342005,1733356240018,-93432.58809561,7.7e-05,2]
[344342007,1733356240031,-49451.45165329,7.7e-05,2]
[344342018,1733356240130,-1720.39690758,7.7e-05,2]
[344342020,1733356240143,-14858.91089151,7.7e-05,2]
[344342022,1733356240155,-3999.64712997,7.7e-05,2]
[344342321,1733356243645,-478.05462727,7.698e-05,2]
[344342338,1733356243806,-21.94537273,7.698e-05,2]
[344342339,1733356243823,-150.0,7.699e-05,2]
[344342342,1733356243833,-500.0,7.699e-05,2]
[344342344,1733356243843,-27.64462717,7.699e-05,2]
[344342346,1733356243856,-472.35537283,7.699e-05,2]
[344342348,1733356243865,-500.0,7.699e-05,2]
[344342350,1733356243875,-220.64218877,7.699e-05,2]
[344342351,1733356243887,-279.35781123,7.699e-05,2]
[344342353,1733356243897,-313.12926978,7.699e-05,2]
[344342355,1733356243908,-186.87073022,7.699e-05,2]
[344342357,1733356243917,-500.0,7.699e-05,2]
[344342359,1733356243927,-500.0,7.699e-05,2]
[344342361,1733356243936,-4758.53921292,7.7e-05,2]
[344342364,1733356243948,-3450.54607309,7.7e-05,2]
[344342366,1733356243960,-1058.08552684,7.7e-05,2]
[344342368,1733356243971,-4224.8770484,7.7e-05,2]
[344342370,1733356243984,-4615.4,7.7e-05,2]
[344342374,1733356244009,-500.0,7.699e-05,2]
[344342376,1733356244019,-717.19431396,7.7e-05,2]
[344342378,1733356244032,-405.989586,7.7e-05,2]
[344342380,1733356244045,-99099.56275774,7.7e-05,2]
[344342383,1733356244058,-59440.0,7.7e-05,2]
[344342385,1733356244070,-250.48040969,7.7e-05,2]
[344342387,1733356244082,-411.94805953,7.7e-05,2]
[344342390,1733356244102,-1450.53264146,7.7e-05,2]
[344342392,1733356244114,-372.69,7.7e-05,2]
[344342553,1733356245792,-500.0,7.699e-05,2]
[344342555,1733356245804,-500.0,7.699e-05,2]
[344342557,1733356245814,-500.0,7.699e-05,2]
[344342559,1733356245825,-273.74,7.699e-05,2]
[344342561,1733356245835,-233565.34188902,7.7e-05,2]
[344342572,1733356245933,-1755.09842989,7.7e-05,2]
[344342574,1733356245945,-346955.33553583,7.7e-05,2]
[344342576,1733356245957,-14451.04548085,7.7e-05,2]
[344342580,1733356245985,-546.006,7.7e-05,2]
[344342583,1733356245997,-537.20916504,7.7e-05,2]
[344342591,1733356246071,-9933.327,7.7e-05,2]
[344342593,1733356246083,-1171.490905,7.7e-05,2]
[344342596,1733356246095,-1652.3132,7.7e-05,2]